Cogmind - Beta 13 @@@ ROGUE MODE // 2024.05.18 @ 22:20:47 Player: FlyingLemon Result: Destroyed by H-88 Terminator with KE Penetrator Performance ------------- Evolutions (8) 4000 Regions Visited (12) 2400 Robots Destroyed (12) 60 Value Destroyed (529) 529 Prototype IDs (9) 180 Alien Tech Used (0) 0 Bonus (500) 500 TOTAL SCORE: 7669 Bonus ------- Entered DSFs 500 Cogmind --------- Core Integrity 0/1450 Matter 179/300 Energy 100/100 System Corruption 6% Temperature Cool (0) Movement Walking (120) Location -2/Testing Parts ------- > --- POWER (3) -------- (None) > --- PROPULSION (9) --- Centrium Leg Improved Linear Gravjet > --- UTILITY (9) ------ Improved Phase Shifter Advanced System Shield > --- WEAPON (2) ------- (None) > --- INVENTORY (5) ---- Experimental Cooling System Advanced Shield Generator Fusion Bomb Launcher Peak State ------------ > --- POWER ------------ Improved Deuterium Engine Light Angular Momentum Engine > --- PROPULSION ------- Impulse Thruster Impulse Thruster Impulse Thruster Impulse Thruster Impulse Thruster Array > --- UTILITY ---------- Advanced Terrain Scan Processor Experimental Targeting Computer Improved Utility Shielding Advanced Focal Shield Experimental EM Disruption Field Advanced Shield Generator Advanced Shield Generator Hacking Suite > --- WEAPON ----------- (None) > --- INVENTORY -------- Advanced Shield Generator Advanced Shield Generator Fusion Bomb Launcher Enhanced Force Lance [Rating: 99] Favorites ----------- Power Light Angular Momentum Engine Engine Light Angular Momentum Engine Power Core Light Nuclear Core Propulsion Improved Flight Unit Treads Improved Medium Treads Leg VSS Leg Wheel Compact Wheel Hover Unit Gravmag Array Flight Unit Improved Flight Unit Utility Signal Interpreter Device ECM Suite Storage Small Storage Unit Processor Signal Interpreter Hackware Hacking Suite Protection Improved Utility Shielding Weapon Powered Hammer Ballistic Gun Light Assault Rifle Launcher Improved Grenade Launcher Impact Weapon Powered Hammer Slashing Weapon Mining Claw Piercing Weapon Enhanced Force Lance Build | -11 -10 -9 -9 -8 -7 -7 -6 -5 -4 -3 -2 -2 ------- Run | Yrd Mat Mat Sto Mat Fac DSF Fac Fac Fac Res Res Tes Slots Evolved 16 | . . 2 . 2 2 . 2 2 2 2 2 . Power 2 | . . . . . . . 1 . . . 1 . Propulsion 7 | . . 1 . 1 1 . . 1 1 1 1 . Utility 7 | . . 1 . 1 1 . 1 1 1 1 . . Weapon . | . . . . . . . . . . . . . Parts Attached 113 | 6 6 6 4 25 1 2 10 7 16 20 6 4 Power 18 | 1 1 1 1 3 . . 4 . 4 3 . . Engine 12 | 1 1 1 1 2 . . 2 . 1 3 . . Core 6 | . . . . 1 . . 2 . 3 . . . Reactor . | . . . . . . . . . . . . . Propulsion 45 | 2 . 4 3 10 . 1 3 3 7 7 2 3 Treads 4 | 1 . 1 . . . . 1 . 1 . . . Leg 7 | . . . . 1 . . 2 1 1 1 . 1 Wheel 3 | 1 . 1 1 . . . . . . . . . Hover 2 | . . . . . . . . . 1 . . 1 Flight 29 | . . 2 2 9 . 1 . 2 4 6 2 1 Utility 30 | 1 2 . . 4 1 . 3 4 4 8 2 1 Device 14 | . 1 . . 2 . . 1 1 1 6 1 1 Storage 2 | 1 . . . . . . . 1 . . . . Processor 9 | . 1 . . 1 . . 2 2 2 1 . . Hackware 4 | . . . . 1 1 . . . 1 . 1 . Protection 1 | . . . . . . . . . . 1 . . Artifact . | . . . . . . . . . . . . . Weapon 20 | 2 3 1 . 8 . 1 . . 1 2 2 . Energy Gun . | . . . . . . . . . . . . . Energy Cannon . | . . . . . . . . . . . . . Ballistic Gun 11 | 2 3 1 . 4 . . . . 1 . . . Ballistic Cannon . | . . . . . . . . . . . . . Launcher 2 | . . . . 1 . . . . . 1 . . Special Weapon . | . . . . . . . . . . . . . Impact Weapon 1 | . . . . . . 1 . . . . . . Slashing Weapon 3 | . . . . 3 . . . . . . . . Piercing Weapon 3 | . . . . . . . . . . 1 2 . Special Melee Weapon . | . . . . . . . . . . . . . Unidentified Prototypes 9 | . . 1 . 2 . . . . . 4 1 1 Parts Lost 51 | . 1 5 3 5 . 3 . . 13 13 8 . Power 4 | . 1 . 1 . . . . . 1 1 . . Propulsion 27 | . . 3 2 3 . 2 . . 6 7 4 . Utility 14 | . . . . 1 . . . . 5 5 3 . Weapon 6 | . . 2 . 1 . 1 . . 1 . 1 . Highest Loss Streak 10 | . 1 4 3 4 . 3 . . 7 10 5 . To Critical Strikes . | . . . . . . . . . . . . . Average Slot Usage (%) 68 | . 98 80 50 75 . 71 80 93 73 55 27 16 Engine 5 | . 13 11 6 5 . . 3 5 2 6 . . Core 2 | . . . . 1 . 7 4 5 4 . . . Treads 4 | . 14 17 . . . . 2 5 7 . . . Leg 1 | . . . . 2 . . 6 5 2 . . 3 Wheel 2 | . 14 8 3 . . . . . . . . . Flight 14 | . . 3 19 24 . 23 20 22 13 18 10 . Device 9 | . 8 . . 12 . 15 13 13 13 15 . 3 Storage 3 | . 14 11 11 1 . . . 4 3 . . . Processor 9 | . 4 11 11 12 . 7 15 16 10 5 7 1 Hackware 3 | . . . . 3 . 7 6 3 5 4 4 4 Ballistic Gun 5 | . 28 18 . 6 . . . . 1 . . . Impact Weapon 1 | . . . . . . 7 6 5 4 . . . Naked Turns . | . . . . . . . . . . . . . Heaviest Build 36 | 12 13 13 10 16 16 16 19 25 32 36 8 2 Greatest Support 45 | 20 20 40 10 23 21 21 24 31 34 45 24 30 Greatest Overweight (x) 2 | . . . 1 1 . 1 . . . . 2 . Average Overweight (x) . | . . . . . . . . . . . . . Largest Inventory Capacity 8 | 8 8 8 8 8 5 5 5 8 8 5 5 5 Average Capacity 6 | 6 8 8 8 5 5 5 5 7 7 5 5 5 Most Carried 8 | 6 8 6 8 8 4 5 5 8 8 5 5 4 Average Carried 5 | 3 7 4 6 5 4 4 4 6 6 4 3 3 Final Capacity 8 | 8 8 8 8 5 5 5 5 8 5 5 5 5 Final Carried 8 | 6 6 5 7 5 4 5 4 8 5 4 4 3 Class Distribution -------------------- 68% | Mutant 26% | Sprinter 3% | Ninja Dominant Class ---------------- Mutant | -10/Materials Mutant | -9/Materials Mutant | -9/Storage Mutant | -8/Materials Mutant | -7/Factory Sprinter | -7/DSF Mutant | -6/Factory Mutant | -5/Factory Mutant | -4/Factory Sprinter | -3/Research Sprinter | -2/Research Mutant | -2/Testing Resources | -11 -10 -9 -9 -8 -7 -7 -6 -5 -4 -3 -2 -2 ----------- Run | Yrd Mat Mat Sto Mat Fac DSF Fac Fac Fac Res Res Tes Matter Collected 1165 | 200 155 107 . 210 . 8 105 130 156 . 94 . Remotely . | . . . . . . . . . . . . . Salvage Created 530 | . 191 243 . . . . . . 96 . . . Parts 29 | . 8 12 . . . . . . 9 . . . Haulers Intercepted . | . . . . . . . . . . . . . Recyclers Shooed 1 | . . . . . . . . . 1 . . . Parts Field Recycled . | . . . . . . . . . . . . . Retrieved Matter . | . . . . . . . . . . . . . Parts Self-Destructed . | . . . . . . . . . . . . . Prevented . | . . . . . . . . . . . . . Kills | -11 -10 -9 -9 -8 -7 -7 -6 -5 -4 -3 -2 -2 ------- Run | Yrd Mat Mat Sto Mat Fac DSF Fac Fac Fac Res Res Tes Combat Hostiles Destroyed 12 | . 4 6 . . . . . . 2 . . . Guns 12 | . 4 6 . . . . . . 2 . . . Classes Destroyed 2 | . 1 . . . . . . . 1 . . . Grunt 10 | . 4 6 . . . . . . . . . . Programmer 2 | . . . . . . . . . 2 . . . Best Kill Streak 2 | . 2 2 . . . . . . 1 . . . Combat Bots Only 2 | . 2 2 . . . . . . 1 . . . Max Kills in Single Turn 1 | . 1 1 . . . . . . 1 . . . Gunslinging . | . . . . . . . . . . . . . Exploded . | . . . . . . . . . . . . . Melee . | . . . . . . . . . . . . . Uniques/NPCs Destroyed . | . . . . . . . . . . . . . Combat | -11 -10 -9 -9 -8 -7 -7 -6 -5 -4 -3 -2 -2 -------- Run | Yrd Mat Mat Sto Mat Fac DSF Fac Fac Fac Res Res Tes Hostile Shots Fired 742 | . 26 97 49 37 . 47 18 . 159 134 168 7 Missed 323 | . 4 26 22 17 . 22 9 . 64 71 86 2 Damage Taken 7493 | . 294 839 273 417 . 384 144 . 2020 1073 1940 109 Core 2926 | . 81 221 145 37 . 143 22 . 627 191 1417 42 Absorbed by Shields 261 | . . . . . . 45 . . . 196 20 . Redirected to Shielding 114 | . . . . . . . . . . 114 . . Ignored by Resistances 137 | . . . . . . . . . . 137 . . Core Remaining (%) 74 | 100 67 . 8 93 . 79 97 100 45 85 . . Volleys Fired 57 | . 20 21 . 1 . . . . 15 . . . Largest 2 | . 2 2 . 1 . . . . 1 . . . Hottest 40 | . 40 40 . 36 . . . . 30 . . . Shots Fired 96 | . 40 40 . 1 . . . . 15 . . . Gun 95 | . 40 40 . . . . . . 15 . . . Cannon . | . . . . . . . . . . . . . Launcher 1 | . . . . 1 . . . . . . . . Special . | . . . . . . . . . . . . . Kinetic 95 | . 40 40 . . . . . . 15 . . . Thermal . | . . . . . . . . . . . . . Explosive 1 | . . . . 1 . . . . . . . . Electromagnetic . | . . . . . . . . . . . . . Robot Hit Streak 20 | . 9 17 . . . . . . 20 . . . Robot Miss Streak 3 | . 2 3 . . . . . . 2 . . . Penetration Max . | . . . . . . . . . . . . . Secondary Targets 3 | . . 3 . . . . . . . . . . Max Gunslinging Chain 1 | . . 1 . . . . . . . . . . Shots Hit Robots 71 | . 29 32 . . . . . . 10 . . . Core Hits 30 | . 12 13 . . . . . . 4 . 1 . Critical Kills . | . . . . . . . . . . . . . Critical Parts Destroyed 1 | . 1 . . . . . . . . . . . Critical Strikes 1 | . 1 . . . . . . . . . . . Destroy 1 | . 1 . . . . . . . . . . . Melee Attacks 20 | . . . . 7 . . 1 . 4 . 8 . Impact 5 | . . . . . . . 1 . 4 . . . Slashing 7 | . . . . 7 . . . . . . . . Piercing 8 | . . . . . . . . . . . 8 . Sneak Attacks . | . . . . . . . . . . . . . Combat Hostiles . | . . . . . . . . . . . . . Follow-up Attacks . | . . . . . . . . . . . . . Damage Inflicted 867 | . 235 351 . . . . . . 274 . 7 . Guns 857 | . 235 351 . . . . . . 271 . . . Cannons . | . . . . . . . . . . . . . Explosions . | . . . . . . . . . . . . . Melee . | . . . . . . . . . . . . . Ramming 10 | . . . . . . . . . 3 . 7 . Kinetic 857 | . 235 351 . . . . . . 271 . . . Thermal . | . . . . . . . . . . . . . Explosive . | . . . . . . . . . . . . . Electromagnetic . | . . . . . . . . . . . . . Impact . | . . . . . . . . . . . . . Slashing . | . . . . . . . . . . . . . Piercing . | . . . . . . . . . . . . . Highest Corruption 6 | . . . . . . . . . 5 4 6 6 Average Corruption 3 | . . . . . . . . . 3 2 3 6 Corruption Purged . | . . . . . . . . . . . . . Corruption Blocked . | . . . . . . . . . . . . . Effects 12 | . . . . . . . . . 7 2 2 1 Message Errors 5 | . . . . . . . . . 2 2 . 1 Matter Fused 1 | . . . . . . . . . 1 . . . Heat Flow Errors 2 | . . . . . . . . . 2 . . . Data Loss (minor) 2 | . . . . . . . . . 1 . 1 . Data Loss (major) 1 | . . . . . . . . . . . 1 . Alerts 1 | . . . . . . . . . 1 . . . Overload Shots . | . . . . . . . . . . . . . Overflow Damage . | . . . . . . . . . . . . . Projectiles . | . . . . . . . . . . . . . Explosions . | . . . . . . . . . . . . . Melee . | . . . . . . . . . . . . . Knockbacks . | . . . . . . . . . . . . . Impact . | . . . . . . . . . . . . . Kinetic . | . . . . . . . . . . . . . Secondary . | . . . . . . . . . . . . . Self-Inflicted Damage 4 | . . . . . . . . . 1 . 3 . Shots . | . . . . . . . . . . . . . Rammed 4 | . . . . . . . . . 2 . 2 . Targets Rammed 4 | . . . . . . . . . 2 . 2 . Kicked . | . . . . . . . . . . . . . Crushed . | . . . . . . . . . . . . . Highest Temperature 208 | . 34 15 2 20 . . . . 179 208 . . Average Temperature 36 | . 11 5 2 6 . . . . 55 91 . . Received Heat Transfer 1134 | . 201 438 72 99 . . . . 136 59 129 . Siege Activations . | . . . . . . . . . . . . . Robots Corrupted . | . . . . . . . . . . . . . Combat Hostiles . | . . . . . . . . . . . . . Parts Fried . | . . . . . . . . . . . . . Impact Corruptions . | . . . . . . . . . . . . . Robots Melted . | . . . . . . . . . . . . . Combat Hostiles . | . . . . . . . . . . . . . Parts Melted . | . . . . . . . . . . . . . Heat Transferred . | . . . . . . . . . . . . . Parts Sabotaged . | . . . . . . . . . . . . . Parts Stolen . | . . . . . . . . . . . . . Parts Stripped . | . . . . . . . . . . . . . Power Chain Reactions . | . . . . . . . . . . . . . Alert | -11 -10 -9 -9 -8 -7 -7 -6 -5 -4 -3 -2 -2 ------- Run | Yrd Mat Mat Sto Mat Fac DSF Fac Fac Fac Res Res Tes Peak Influence 761 | . 95 199 189 232 21 18 1 5 109 417 761 398 Initial 398 | . . 39 79 79 21 18 . . 2 57 228 398 Average 121 | . 42 114 123 134 21 1 . 1 22 179 429 398 Maximum Alert Level 3 | . . . . 1 . . . . . 2 3 1 Low Security (%) 80 | 100 100 100 100 95 100 100 100 100 100 61 . . Level 1 14 | . . . . 4 . . . . . 34 54 100 Level 2 4 | . . . . . . . . . . 3 34 . Level 3 1 | . . . . . . . . . . . 10 . Level 4 . | . . . . . . . . . . . . . Level 5 . | . . . . . . . . . . . . . High Security . | . . . . . . . . . . . . . Max Security . | . . . . . . . . . . . . . Squads Dispatched 21 | . . 3 1 2 . . 1 . 2 6 6 . Investigation 4 | . . 1 . . . . . . . . 3 . Extermination 3 | . . . . . . . . . 1 1 1 . Reinforcement 14 | . . 2 1 2 . . 1 . 1 5 2 . Assault . | . . . . . . . . . . . . . Garrison . | . . . . . . . . . . . . . Intercept . | . . . . . . . . . . . . . Searches Triggered 1 | . . . . . . . . . . . 1 . Construction Impeded 1 | . . . . . . . . . . . 1 . Haulers Reinforced . | . . . . . . . . . . . . . Active Scanning Responses . | . . . . . . . . . . . . . Cargo Convoy Interrupts . | . . . . . . . . . . . . . Stealth | -11 -10 -9 -9 -8 -7 -7 -6 -5 -4 -3 -2 -2 --------- Run | Yrd Mat Mat Sto Mat Fac DSF Fac Fac Fac Res Res Tes Distress Signals 3 | . . 1 . 1 . . . . . 1 . . Communications Jammed . | . . . . . . . . . . . . . Distress Signals . | . . . . . . . . . . . . . Times Spotted 192 | . 6 19 17 28 . 2 3 1 21 47 45 3 Peak Tracking Total 21 | . 2 9 18 9 . 2 2 2 12 21 14 3 Tactical Retreats 33 | . . 2 1 11 . 2 . . 4 7 6 . Traps | -11 -10 -9 -9 -8 -7 -7 -6 -5 -4 -3 -2 -2 ------- Run | Yrd Mat Mat Sto Mat Fac DSF Fac Fac Fac Res Res Tes Traps Triggered 8 | . . 1 1 . . 3 . . . 1 2 . Indirectly . | . . . . . . . . . . . . . Trap Hack Attempts . | . . . . . . . . . . . . . Triggered . | . . . . . . . . . . . . . Disarmed . | . . . . . . . . . . . . . Reprogrammed . | . . . . . . . . . . . . . Reused . | . . . . . . . . . . . . . Traps Extracted . | . . . . . . . . . . . . . Installed . | . . . . . . . . . . . . . Triggered . | . . . . . . . . . . . . . Machines | -11 -10 -9 -9 -8 -7 -7 -6 -5 -4 -3 -2 -2 ---------- Run | Yrd Mat Mat Sto Mat Fac DSF Fac Fac Fac Res Res Tes Machines Disabled 1 | . . . . 1 . . . . . . . . Max in Single Turn 1 | . . . . 1 . . . . . . . . Machines Repaired . | . . . . . . . . . . . . . Machines Dismantled . | . . . . . . . . . . . . . Machines Sabotaged . | . . . . . . . . . . . . . Overloaded Fab Kills . | . . . . . . . . . . . . . Hacking | -11 -10 -9 -9 -8 -7 -7 -6 -5 -4 -3 -2 -2 --------- Run | Yrd Mat Mat Sto Mat Fac DSF Fac Fac Fac Res Res Tes Machines Accessed 14 | . 1 . 3 2 1 . 1 2 2 . 2 . Terminals 12 | . 1 . 3 2 1 . 1 2 1 . 1 . Fabricators . | . . . . . . . . . . . . . Repair Stations . | . . . . . . . . . . . . . Recycling Units 1 | . . . . . . . . . 1 . . . Scanalyzers . | . . . . . . . . . . . . . Garrison Access 1 | . . . . . . . . . . . 1 . Total Hacks 35 | . 6 . 6 5 2 . 1 7 2 . 6 . Successful 17 | . 4 . 2 3 1 . 1 4 1 . 1 . Failed 18 | . 2 . 4 2 1 . . 3 1 . 5 . Catastrophic 3 | . . . . . . . . . . . 3 . Database Lockouts . | . . . . . . . . . . . . . Manual 13 | . 2 . 3 1 . . . 3 1 . 3 . Terminals 31 | . 6 . 6 5 2 . 1 7 1 . 3 . Fabricators . | . . . . . . . . . . . . . Repair Stations . | . . . . . . . . . . . . . Recycling Units 1 | . . . . . . . . . 1 . . . Scanalyzers . | . . . . . . . . . . . . . Garrison Access 3 | . . . . . . . . . . . 3 . Terminal Hacks 11 | . 3 . 1 2 1 . 1 3 . . . . Record 1 | . . . . . . . . 1 . . . . Robot Analysis 2 | . . . 1 1 . . . . . . . . Open DSF 2 | . . . . . 1 . 1 . . . . . Emergency Access Points 2 | . 1 . . 1 . . . . . . . . Locate Traps 1 | . 1 . . . . . . . . . . . Registered Components 1 | . . . . . . . . 1 . . . . Zone Layout 2 | . 1 . . . . . . 1 . . . . Fabricator Hacks . | . . . . . . . . . . . . . Repair Station Hacks . | . . . . . . . . . . . . . Recycling Unit Hacks . | . . . . . . . . . . . . . Scanalyzer . | . . . . . . . . . . . . . Garrison Access Hacks . | . . . . . . . . . . . . . Unauthorized Hacks 6 | . 1 . 1 1 . . . 1 1 . 1 . Terminals 6 | . 1 . 1 1 . . . 1 1 . 1 . Botnet 6 | . 1 . 1 1 . . . 1 1 . 1 . Fabricators . | . . . . . . . . . . . . . Repair Stations . | . . . . . . . . . . . . . Recycling Units . | . . . . . . . . . . . . . Scanalyzers . | . . . . . . . . . . . . . Garrison Access . | . . . . . . . . . . . . . Data Cores Recovered . | . . . . . . . . . . . . . Used . | . . . . . . . . . . . . . Hacking Detections 11 | . . . 3 1 1 . 1 1 2 . 2 . Full Trace Events 2 | . . . . . . . . . . . 2 . Feedback Events . | . . . . . . . . . . . . . Feedback Blocked . | . . . . . . . . . . . . . Robot Schematics Acquired . | . . . . . . . . . . . . . Robots Built . | . . . . . . . . . . . . . Authchips . | . . . . . . . . . . . . . Time . | . . . . . . . . . . . . . Total Robot Build Rating . | . . . . . . . . . . . . . Part Schematics Acquired . | . . . . . . . . . . . . . Parts Built . | . . . . . . . . . . . . . Authchips . | . . . . . . . . . . . . . Time . | . . . . . . . . . . . . . Total Part Build Rating . | . . . . . . . . . . . . . Parts Repaired . | . . . . . . . . . . . . . Time . | . . . . . . . . . . . . . Parts Recycled . | . . . . . . . . . . . . . Recycled Matter . | . . . . . . . . . . . . . Retrieved Matter . | . . . . . . . . . . . . . Retrieved Components . | . . . . . . . . . . . . . Parts Scanalyzed . | . . . . . . . . . . . . . Part Schematics Acquired . | . . . . . . . . . . . . . Parts Damaged . | . . . . . . . . . . . . . Bothacking | -11 -10 -9 -9 -8 -7 -7 -6 -5 -4 -3 -2 -2 ------------ Run | Yrd Mat Mat Sto Mat Fac DSF Fac Fac Fac Res Res Tes Used RIF Installer . | . . . . . . . . . . . . . Robots Hacked . | . . . . . . . . . . . . . Non-combat . | . . . . . . . . . . . . . Combat . | . . . . . . . . . . . . . Robot Hacks Applied . | . . . . . . . . . . . . . Relay Couplers Released . | . . . . . . . . . . . . . Fabnet Peak Effective % . | . . . . . . . . . . . . . Robots Rewired . | . . . . . . . . . . . . . Allies Hacked . | . . . . . . . . . . . . . Hacks Repelled . | . . . . . . . . . . . . . Allies | -11 -10 -9 -9 -8 -7 -7 -6 -5 -4 -3 -2 -2 -------- Run | Yrd Mat Mat Sto Mat Fac DSF Fac Fac Fac Res Res Tes Total Allies . | . . . . . . . . . . . . . Largest Group . | . . . . . . . . . . . . . Highest-Rated Group . | . . . . . . . . . . . . . Highest-Rated Ally . | . . . . . . . . . . . . . Total Orders . | . . . . . . . . . . . . . Ally Attacks . | . . . . . . . . . . . . . Total Damage . | . . . . . . . . . . . . . Kills . | . . . . . . . . . . . . . Allies Corrupted . | . . . . . . . . . . . . . Allies Melted . | . . . . . . . . . . . . . Intel | -11 -10 -9 -9 -8 -7 -7 -6 -5 -4 -3 -2 -2 ------- Run | Yrd Mat Mat Sto Mat Fac DSF Fac Fac Fac Res Res Tes Robot Analysis Total 2 | . . . 1 1 . . . . . . . . Derelict Logs Recovered . | . . . . . . . . . . . . . Drone Launches . | . . . . . . . . . . . . . Drone Recoveries . | . . . . . . . . . . . . . Exploration | -11 -10 -9 -9 -8 -7 -7 -6 -5 -4 -3 -2 -2 ------------- Run | Yrd Mat Mat Sto Mat Fac DSF Fac Fac Fac Res Res Tes Turns Passed 3119 | 68 312 202 107 433 2 84 179 259 637 398 351 87 Spaces Moved 4358 | 48 165 124 239 890 3 85 308 388 629 747 641 91 Core 93 | 3 . . 3 . . . . . 40 . 24 23 Treads 148 | 12 100 36 . . . . . . . . . . Legs 55 | . . . . 3 . . . . . . . 52 Wheels 122 | 33 65 24 . . . . . . . . . . Hover 150 | . . . . . . . . . 134 . . 16 Flight 3790 | . . 64 236 887 3 85 308 388 455 747 617 . Fastest Speed 29 | 50 100 37 37 29 29 29 32 61 37 29 29 40 Average Speed 52 | 111 136 85 40 35 29 37 49 61 83 32 32 88 Slowest Speed 160 | 160 160 160 110 120 29 105 62 72 130 39 150 120 Overloaded Moves . | . . . . . . . . . . . . . Propulsion Burnouts . | . . . . . . . . . . . . . Robots Hopped 54 | . . . 6 25 . . . . 1 13 9 . Cave-ins Triggered . | . . . . . . . . . . . . . Exploration Rate (%) 30 | 3 24 16 50 74 . 89 6 9 18 27 31 15 Regions Visited 12 Branch Regions 2 Pre-discovered Areas . | . . . . . . . . . . . . . Known Exits Taken 7 | . 1 1 1 1 1 . 1 1 . . . . Unknown Exits Taken 4 | 1 . . . . . . . . 1 1 1 . Scrap Searched . | . . . . . . . . . . . . . Spaces Dug 29 | . . . . 17 . . 1 . 3 . 8 . Terrain Destroyed 29 | . . . . 17 . . 1 . 3 . 8 . Melee 17 | . . . . 5 . . 1 . 3 . 8 . Projectile . | . . . . . . . . . . . . . AOE 12 | . . . . 12 . . . . . . . . Terrain Rammed . | . . . . . . . . . . . . . Walls Destroyed . | . . . . . . . . . . . . . Machines Disabled . | . . . . . . . . . . . . . Actions | -11 -10 -9 -9 -8 -7 -7 -6 -5 -4 -3 -2 -2 --------- Run | Yrd Mat Mat Sto Mat Fac DSF Fac Fac Fac Res Res Tes Total 5003 | 59 221 184 242 967 3 136 332 407 717 882 756 97 Wait 354 | . 19 28 1 41 . . 6 2 35 116 106 . Move 4250 | 47 164 123 228 844 2 84 307 387 626 724 623 91 Hop 43 | . . . 4 20 . . . . 1 9 9 . Pick Up 50 | 6 6 3 4 11 . 1 3 7 5 2 2 . Fast Attach 57 | 6 2 . 3 12 . 1 5 1 6 15 3 3 Attach 37 | . 1 5 1 8 1 1 2 4 5 5 3 1 Detach 10 | . . 1 . 3 . 1 . 1 . 3 1 . Swap 19 | . 3 1 . 5 . . 3 2 5 . . . Drop 52 | . 6 2 1 15 . . 5 3 13 5 . 2 Fire 57 | . 20 21 . 1 . . . . 15 . . . Melee 20 | . . . . 7 . . 1 . 4 . 8 . Ram 3 | . . . . . . . . . 2 . 1 . Kick . | . . . . . . . . . . . . . Crush . | . . . . . . . . . . . . . Escape Stasis 51 | . . . . . . 48 . . . 3 . . Rewire . | . . . . . . . . . . . . . Trap . | . . . . . . . . . . . . . Miscellaneous . | . . . . . . . . . . . . . Route ------- -11/Scrapyard -10/Materials -9/Materials -9/Storage -8/Materials -7/Factory -7/DSF -6/Factory -5/Factory -4/Factory -3/Research -2/Research -2/Testing History --------- Turn | Location | Event 24 | -11/Scrapyard | Discovered new exit (range 15) 69 | -11/Scrapyard | Entered Materials 318 | -10/Materials | Build established: Mutant 378 | -10/Materials | Discovered new exit (range 3) 380 | -10/Materials | Identified exit to Materials 381 | -10/Materials | Entered another Materials area 381 | -9/Materials | Evolved 2 slots: Propulsion x1, Utility x1 557 | -9/Materials | Core integrity fell below 50% 569 | -9/Materials | Discovered new exit (range 5) 571 | -9/Materials | Identified exit to Storage 583 | -9/Materials | Entered Storage 595 | -9/Storage | Lost 4 parts (2n2w) 667 | -9/Storage | Core integrity fell below 20% 687 | -9/Storage | Discovered new exit (range 9) 689 | -9/Storage | Identified exit to Materials 690 | -9/Storage | Entered Materials 690 | -8/Materials | Evolved 2 slots: Propulsion x1, Utility x1 697 | -8/Materials | Lost 3 parts (1p2n) 1015 | -8/Materials | Lost 4 parts (2n1u1w) 1109 | -8/Materials | Discovered new exit (range 16) 1116 | -8/Materials | Identified exit to Factory 1123 | -8/Materials | Entered Factory 1123 | -7/Factory | Evolved 2 slots: Propulsion x1, Utility x1 1125 | -7/Factory | Identified exit to DSF 1125 | -7/Factory | Entered DSF 1147 | -7/DSF | Additional patrols routed to DSF 1172 | -7/DSF | Lost 3 parts (2n1w) 1188 | -7/DSF | Discovered new exit (range 12) 1209 | -7/DSF | Identified exit to Factory 1209 | -7/DSF | Entered Factory 1209 | -6/Factory | Evolved 2 slots: Power x1, Utility x1 1230 | -6/Factory | Build established: Sprinter 1386 | -6/Factory | Discovered new exit (range 3) 1387 | -6/Factory | Identified exit to Factory 1388 | -6/Factory | Entered another Factory area 1388 | -5/Factory | Evolved 2 slots: Propulsion x1, Utility x1 1529 | -5/Factory | Discovered new exit (range 16) 1538 | -5/Factory | Build established: Mutant 1538 | -5/Factory | Identified exit to Factory 1647 | -5/Factory | Entered another Factory area 1647 | -4/Factory | Evolved 2 slots: Propulsion x1, Utility x1 2182 | -4/Factory | Lost 7 parts (1p3n3u) 2276 | -4/Factory | Core integrity fell below 50% 2278 | -4/Factory | Discovered new exit (range 16) 2282 | -4/Factory | Lost 3 parts (2n1w) 2284 | -4/Factory | Entered Research 2284 | -3/Research | Evolved 2 slots: Propulsion x1, Utility x1 2467 | -3/Research | Found Enh. Force Lance 2471 | -3/Research | Found Prototype Device 2471 | -3/Research | Identified Exp. EM Disruption Field 2510 | -3/Research | Spotted B-86 Titan 2516 | -3/Research | Spotted B-86 Titan 2524 | -3/Research | Spotted B-90 Cyclops 2532 | -3/Research | Spotted B-86 Titan 2539 | -3/Research | Found Prototype Processor 2539 | -3/Research | Identified Exp. Targeting Computer 2576 | -3/Research | Found Fusion Bomb Launcher 2679 | -3/Research | Discovered new exit (range 10) 2682 | -3/Research | Entered another Research area 2682 | -2/Research | Evolved 2 slots: Power x1, Propulsion x1 2709 | -2/Research | Lost 10 parts (1p4n5u) 2860 | -2/Research | Spotted B-90 Cyclops 2949 | -2/Research | Spotted B-90 Cyclops 2971 | -2/Research | Search patrols dispatched 3009 | -2/Research | Spotted B-90 Cyclops 3012 | -2/Research | Core integrity fell below 50% 3027 | -2/Research | Core integrity fell below 20% 3029 | -2/Research | Discovered new exit (range 8) 3033 | -2/Research | Entered Testing 3060 | -2/Testing | Lost 5 parts (2n2u1w) 3120 | -2/Testing | Destroyed by H-88 Terminator with KE Penetrator Last Messages --------------- Slammed into Y-72 Warden. LOCATION=UNKNOWN GOAL=ESCAPE Acquired Imp. Linear Gravjet. Acquired Centrium Leg. K-01 Serf cleans the Prototyping Station. Acquired Prototype Flight Unit. Identified Exp. Q-thruster. Adv. Terrain Scan Processor broken. Faulty integration triggers power surge. Dropped Faulty Exp. Q-thruster. Discarded Broken Adv. Terrain Scan Processor. Connecting with Fabricator... Current location identified: Testing 7KS|/7QRCAGH4J<#HDAO35SAZ7MMWZ%61|0P Penetrated by Slug. Slug penetrates Wall. Penetrated by Slug. Slug penetrates Wall. Penetrated by Slug. Map ----- +----------------------------------------------------+ | ??????????????# # #????# """" """" | | ??????????????# # ###### """" """" | | ??????????????# # # + """" """" | | ??????????????# # + # | | ??????????????# # # + | | ??????????????# # + # | | ??????????????# # # # "F "" | | ??????????????# # # # """"" | | ??????????????#####+######+###### # """"" | | ???????????????# ############# | | ???????????????# #???????????? | | ???????????????# """ """ """ #???????????? | | ???????????????# """ """ """ #???????????? | | ???????????????#### """ """ """ #???????????? | | ??????????????????# #???????????? | | ??????????????????# """ """ """ #???????????? | | ??????????????????# """ """ """ #???????????? | | ??????????????????# """ """ """ #???????????? | | ??????????????????# #???????????? | | ??????????????????# """ """ """ #???????????? | | ??????????????????# """ """ """ k#???????????? | | ??????????????????# """ """ """ R#???????????? | | ??????????#####+### ###+###?????? | | ????????? #????? | | ????????? #????? | | ????????? @ #????? | | ???????????# #????? | | ????????????###+######################## #????? | | ???????????????????????????????????????? #????? | | ????????????????????????????????????????? #????? | | ?????????????????????????????????????????= #????? | | ??????????????????????????????????????????? #????? | | ?????????????????????????????????????????????????? | | ?????????????????????????????????????????????????? | | ?????????????????????????????????????????????????? | | ?????????????????????????????????????????????????? | | ?????????????????????????????????????????????????? | | ?????????????????????????????????????????????????? | | ?????????????????????????????????????????????????? | | ?????????????????????????????????????????????????? | | ?????????????????????????????????????????????????? | | ?????????????????????????????????????????????????? | | ?????????????????????????????????????????????????? | | ?????????????????????????????????????????????????? | | ?????????????????????????????????????????????????? | | ?????????????????????????????????????????????????? | | ?????????????????????????????????????????????????? | | ?????????????????????????????????????????????????? | | ?????????????????????????????????????????????????? | | ?????????????????????????????????????????????????? | +----------------------------------------------------+ Best States ------------- Heat Dissipation 49 Energy Generation 31 Energy Capacity 290 Matter Stores 300 Matter Capacity 300 Sight Range 16 Robot Scan Range 18 Terrain Scan Range 16 Terrain Scan Density 410 ECM Strength 1 Additional Mass Support 9 Resistance: KI 30 Utility Shielding 66 Evasion (%) 64 Targeting Accuracy 12 Melee Accuracy 5 Target Analysis 6 Recoil Reduction 3 Offensive Hacking 10 Defensive Hacking 14 Item Schematics ----------------- None Robot Schematics ------------------ None Fabricated ------------ Nothing Alien Tech Used ----------------- None Achievements -------------- Party Time Challenges ------------ None Game ------ Seed PotentialThunderNetwork Manual? 0 Play Time 01:07:32 Cumulative 29.1 hours Start 2024.05.18 @ 21:13:02 End 2024.05.18 @ 22:20:47 Sessions 1 Manual Loads 0 Difficulty Rogue Special Mode None Game No. 40 Rogue 40 Adventurer 0 Explorer 0 Win Type - Total 0 Types 0/0/0/0/0/0/0/0/0 Lore% 30 Gallery% 39 Achievement% 30 Wizard Run 0 Options --------- Layout 0 ASCII 0 Keyboard 0 Movement Numpad Keybinds 0 Fullscreen 2 Font 24/Smallcaps Map View 76x50 Zoom Use 0% Tactical HUD 0 Map Filters NONE Filters NONE Steam 1 RUN: 5a54bc7c-caa3-4378-b47a-a3904752d985